fUST/lending_fUST_20250806
["ID","MTS","AMOUNT","RATE_DAILY","PERIOD"]
[377580294,1754448644675,-189.43151,0.00028,7]
[377580296,1754448644685,-151.0,0.00028,7]
[377580298,1754448644694,-151.0,0.00028,7]
[377580300,1754448644703,-151.0,0.00028,7]
[377580302,1754448644713,-151.0,0.00028,7]
[377580304,1754448644722,-151.0,0.00028,7]
[377580306,1754448644732,-151.0,0.00028,7]
[377580308,1754448644742,-645.940949,0.00028,7]
[377580310,1754448644752,-645.940949,0.00028,7]
[377580312,1754448644762,-157.784801,0.00028,7]
[377580314,1754448644772,-151.0,0.00028,7]
[377580316,1754448644781,-200.27210843,0.0002801,2]
[377580318,1754448644791,-151.0,0.00028016,7]
[377580320,1754448644800,-153.74909,0.00028016,7]
[377580322,1754448644810,-16688.7046585,0.00028042,9]
[377580324,1754448644820,-151.0,0.00028073,7]
[377580326,1754448644830,-997.38463,0.00028073,7]
[377580328,1754448644841,-997.38463,0.00028073,7]
[377580330,1754448644851,-360.0,0.00028088,2]
[377580332,1754448644864,-214.194849,0.00028116,7]
[377580334,1754448644874,-214.194849,0.00028116,7]
[377580336,1754448644883,-160.0,0.00028119,3]
[377580339,1754448644893,-171.18,0.00028119,2]
[377580341,1754448644905,-181.977814,0.00028121,7]
[377580343,1754448644915,-151.0,0.00028121,7]
[377580345,1754448644924,-214.194849,0.00028121,7]
[377580347,1754448644934,-214.194849,0.00028121,7]
[377580349,1754448644944,-160.93899496,0.00028138,10]
[377580351,1754448644953,-550.4,0.00028144,3]
[377580353,1754448644963,-3520.73581922,0.00028201,2]
[377580355,1754448644972,-160.0,0.00028218,9]
[377580357,1754448644983,-151.0,0.00028219,7]
[377580359,1754448644993,-500.0,0.00028219,2]
[377580361,1754448645002,-461.75954884,0.00028219,5]
[377580363,1754448645011,-151.0,0.00028237,7]
[377580365,1754448645021,-151.0,0.00028237,7]
[377580367,1754448645031,-189.43151,0.00028242,7]
[377580369,1754448645040,-189.43151,0.00028242,7]
[377580371,1754448645049,-150.165,0.00028264,2]
[377580373,1754448645059,-150.24,0.00028264,2]
[377580375,1754448645068,-151.0,0.00028264,7]
[377580377,1754448645077,-173.359993,0.00028264,7]
[377580379,1754448645086,-151.0,0.00028264,7]
[377580381,1754448645096,-151.0,0.00028264,7]
[377580383,1754448645106,-152.831059,0.00028264,7]
[377580385,1754448645115,-151.0,0.00028264,7]
[377580387,1754448645125,-151.0,0.000283,7]
[377580389,1754448645135,-151.0,0.000283,7]
[377580391,1754448645145,-151.0,0.000283,7]
[377580393,1754448645154,-151.0,0.000283,7]
[377580395,1754448645163,-151.0,0.000283,7]
[377580397,1754448645173,-151.0,0.000283,7]
[377580399,1754448645182,-1447.859031,0.000283,7]
[377580401,1754448645191,-307.592208,0.000283,7]
[377580403,1754448645200,-307.592208,0.000283,7]
[377580405,1754448645209,-165.265351,0.000283,7]
[377580407,1754448645219,-551.324436,0.000283,7]
[377580409,1754448645231,-165.265351,0.000283,7]
[377580411,1754448645241,-551.324436,0.000283,7]
[377580413,1754448645250,-427.871858,0.000283,7]
[377580415,1754448645260,-427.871858,0.000283,7]
[377580417,1754448645269,-151.0,0.00028353,7]
[377580419,1754448645279,-189.43151,0.00028353,7]
[377580421,1754448645288,-189.43151,0.00028353,7]
[377580423,1754448645298,-155.43144,0.00028353,7]
[377580425,1754448645307,-151.0,0.00028353,7]
[377580427,1754448645317,-214.194849,0.00028353,7]
[377580429,1754448645326,-214.194849,0.00028353,7]
[377580431,1754448645336,-185.455294,0.00028353,7]
[377580433,1754448645346,-151.0,0.00028353,7]
[377580436,1754448645357,-151.0,0.00028353,7]
[377580438,1754448645366,-187.614617,0.00028353,7]
[377580440,1754448645376,-997.38463,0.00028353,7]
[377580442,1754448645385,-997.38463,0.00028353,7]
[377580444,1754448645395,-151.0,0.00028353,7]
[377580446,1754448645404,-151.0,0.00028353,7]
[377580448,1754448645414,-151.0,0.00028353,7]
[377580450,1754448645424,-323.829092,0.00028353,7]
[377580452,1754448645434,-323.829092,0.00028353,7]
[377580454,1754448645444,-579.103821,0.00028353,7]
[377580456,1754448645454,-579.103821,0.00028353,7]
[377580459,1754448645463,-151.0,0.00028353,7]
[377580461,1754448645473,-151.0,0.00028353,7]
[377580463,1754448645483,-155.243549,0.00028353,7]
[377580465,1754448645493,-408.620148,0.00028353,7]
[377580467,1754448645502,-408.620148,0.00028353,7]
[377580469,1754448645513,-825.1159762,0.00028411,2]
[377580471,1754448645523,-2000.0,0.00028416,5]
[377580473,1754448645533,-194.256558,0.00028421,7]
[377580475,1754448645542,-151.0,0.00028421,7]
[377580478,1754448645552,-151.0,0.00028421,7]
[377580479,1754448645561,-151.0,0.00028421,7]
[377580482,1754448645571,-151.0,0.00028421,7]
[377580484,1754448645580,-645.940949,0.00028421,7]
[377580486,1754448645589,-645.940949,0.00028421,7]
[377580488,1754448645599,-157.784801,0.00028421,7]
[377580490,1754448645608,-151.0,0.00028421,7]
[377580492,1754448645617,-151.0,0.00028428,7]
[377580494,1754448645628,-5000.0,0.00028442,2]
[377580496,1754448645637,-151.0,0.00028458,7]
[377580498,1754448645647,-151.0,0.00028458,7]
[377580500,1754448645657,-160.130306,0.00028493,7]
[377580502,1754448645666,-500.0,0.00028493,2]
[377580504,1754448645676,-1000.0,0.00028521,5]
[377580506,1754448645686,-1000.0,0.00028521,2]
[377580508,1754448645695,-435.7221146,0.00028521,5]
[377580510,1754448645705,-250.0,0.00028521,5]
[377580512,1754448645714,-1004.38137586,0.00028521,5]
[377580514,1754448645724,-151.0,0.00028521,7]
[377580516,1754448645734,-151.0,0.00028521,7]
[377580518,1754448645744,-151.0,0.00028521,7]
[377580520,1754448645754,-151.0,0.00028521,7]
[377580522,1754448645763,-151.0,0.00028521,7]
[377580524,1754448645772,-151.0,0.00028521,7]
[377580526,1754448645782,-151.0,0.00028521,7]
[377580528,1754448645792,-155.673556,0.00028521,7]
[377580530,1754448645801,-151.0,0.00028521,7]
[377580533,1754448645812,-151.0,0.00028521,7]
[377580535,1754448645822,-151.0,0.00028521,7]
[377580537,1754448645832,-408.620148,0.00028521,7]
[377580539,1754448645841,-408.620148,0.00028521,7]
[377580541,1754448645854,-185.455294,0.00028525,7]
[377580543,1754448645864,-151.0,0.00028525,7]
[377580545,1754448645873,-997.38463,0.00028525,7]
[377580547,1754448645882,-997.38463,0.00028525,7]
[377580549,1754448645892,-151.0,0.00028525,7]
[377580551,1754448645901,-1447.859031,0.00028525,7]
[377580553,1754448645910,-307.592208,0.00028525,7]
[377580555,1754448645920,-307.592208,0.00028525,7]
[377580557,1754448645929,-165.265351,0.00028525,7]
[377580559,1754448645939,-551.324436,0.00028525,7]
[377580561,1754448645948,-165.265351,0.00028525,7]
[377580563,1754448645962,-551.324436,0.00028525,7]
[377580565,1754448645971,-427.871858,0.00028525,7]
[377580567,1754448645981,-427.871858,0.00028525,7]
[377580569,1754448645991,-151.0,0.0002853,7]
[377580570,1754448646001,-151.0,0.0002853,7]
[377580572,1754448646010,-151.0,0.0002853,7]
[377580574,1754448646021,-151.0,0.0002853,7]
[377580576,1754448646030,-151.0,0.0002853,7]
[377580578,1754448646039,-323.829092,0.0002853,7]
[377580580,1754448646049,-323.829092,0.0002853,7]
[377580582,1754448646059,-579.103821,0.0002853,7]
[377580584,1754448646068,-579.103821,0.0002853,7]
[377580586,1754448646077,-2400.0,0.00028563,7]
[377580588,1754448646087,-160.0,0.00028564,3]
[377580590,1754448646096,-160.0,0.0002857,10]
[377580592,1754448646107,-151.0,0.00028573,7]
[377580594,1754448646117,-189.43151,0.000286,7]
[377580596,1754448646126,-189.43151,0.000286,7]
[377580598,1754448646136,-1650.2319524,0.00028609,2]
[377580601,1754448646155,-825.1159762,0.00028612,2]
[377580603,1754448646166,-1500.0,0.00028619,28]
[377580605,1754448646176,-1500.0,0.00028619,28]
[377580607,1754448646186,-1500.0,0.00028619,28]
[377580609,1754448646196,-1500.0,0.00028619,28]
[377580611,1754448646207,-1500.0,0.00028619,28]
[377580613,1754448646217,-1500.0,0.00028619,28]
[377580615,1754448646227,-1500.0,0.00028619,28]
[377580617,1754448646237,-1500.0,0.00028619,28]
[377580619,1754448646247,-1500.0,0.00028619,28]
[377580622,1754448646257,-1500.0,0.00028619,28]
[377580624,1754448646267,-1500.0,0.00028619,28]
[377580626,1754448646276,-1500.0,0.00028619,28]
[377580628,1754448646286,-1500.0,0.00028619,28]
[377580630,1754448646295,-1500.0,0.00028619,28]
[377580632,1754448646307,-1500.0,0.00028619,28]
[377580634,1754448646317,-1500.0,0.00028619,28]
[377580636,1754448646326,-1500.0,0.00028619,28]
[377580638,1754448646336,-1500.0,0.00028619,28]
[377580640,1754448646346,-1500.0,0.00028619,28]
[377580642,1754448646355,-1500.0,0.00028619,28]
[377580644,1754448646366,-1500.0,0.00028619,28]
[377580646,1754448646376,-1500.0,0.00028619,28]
[377580648,1754448646387,-1500.0,0.00028619,28]
[377580650,1754448646397,-1500.0,0.00028619,28]
[377580652,1754448646408,-1500.0,0.00028619,28]
[377580654,1754448646417,-1500.0,0.00028619,28]
[377580656,1754448646426,-1500.0,0.00028619,28]
[377580657,1754448646436,-1500.0,0.00028619,28]
[377580660,1754448646446,-1500.0,0.00028619,28]
[377580661,1754448646456,-1500.0,0.00028619,28]
[377580663,1754448646466,-1500.0,0.00028619,28]
[377580665,1754448646477,-1500.0,0.00028619,28]
[377580667,1754448646487,-1500.0,0.00028619,28]
[377580669,1754448646497,-1500.0,0.00028619,28]
[377580671,1754448646506,-1500.0,0.00028619,28]
[377580673,1754448646520,-1500.0,0.00028619,28]
[377580675,1754448646529,-584.168314,0.00028619,28]
[377580677,1754448646539,-214.194849,0.00028619,7]
[377580679,1754448646549,-214.194849,0.00028619,7]
[377580681,1754448646559,-153.190217,0.00028619,7]
[377580683,1754448646568,-151.0,0.00028619,7]
[377580685,1754448646577,-151.0,0.00028619,7]
[377580687,1754448646586,-151.0,0.00028619,7]
[377580689,1754448646596,-151.0,0.00028619,7]
[377580691,1754448646605,-151.0,0.00028619,7]
[377580693,1754448646615,-151.0,0.00028619,7]
[377580695,1754448646624,-151.0,0.00028619,7]
[377580697,1754448646634,-151.0,0.00028619,7]
[377580699,1754448646644,-151.0,0.00028619,7]
[377580701,1754448646653,-151.0,0.00028619,7]
[377580703,1754448646672,-151.0,0.00028619,7]
[377580705,1754448646692,-151.0,0.00028619,7]
[377580707,1754448646702,-193.452697,0.00028619,7]
[377580709,1754448646716,-151.0,0.00028619,7]
[377580711,1754448646728,-151.0,0.00028619,7]
[377580713,1754448646739,-151.0,0.00028619,7]
[377580715,1754448646756,-177.672,0.00028619,7]
[377580717,1754448646767,-323.829092,0.00028619,7]
[377580719,1754448646776,-323.829092,0.00028619,7]
[377580721,1754448646787,-323.829092,0.00028619,7]
[377580723,1754448646796,-323.829092,0.00028619,7]
[377580725,1754448646806,-151.0,0.00028619,7]
[377580727,1754448646816,-151.0,0.00028619,7]
[377580729,1754448646825,-151.0,0.00028619,7]
[377580731,1754448646835,-151.0,0.00028619,7]
[377580733,1754448646844,-151.0,0.00028619,7]
[377580735,1754448646857,-151.0,0.00028619,7]
[377580737,1754448646867,-151.0,0.00028619,7]
[377580739,1754448646876,-158.026185,0.00028619,7]
[377580741,1754448646885,-151.0,0.00028619,7]
[377580743,1754448646894,-151.0,0.00028619,7]
[377580745,1754448646905,-151.0,0.00028619,7]
[377580747,1754448646914,-579.103821,0.00028619,7]
[377580749,1754448646924,-579.103821,0.00028619,7]
[377580751,1754448646936,-579.103821,0.00028619,7]
[377580753,1754448646946,-579.103821,0.00028619,7]
[377580755,1754448646956,-151.0,0.00028619,7]
[377580757,1754448646966,-151.0,0.00028619,7]
[377580759,1754448646976,-151.0,0.00028619,7]
[377580775,1754448647132,-151.0,0.00028619,7]
[377580777,1754448647143,-151.0,0.00028619,7]
[377580779,1754448647154,-151.0,0.00028619,7]
[377580781,1754448647163,-151.0,0.00028619,7]
[377580783,1754448647172,-151.0,0.00028619,7]
[377580785,1754448647183,-151.0,0.00028619,7]
[377580787,1754448647192,-151.0,0.00028619,7]
[377580790,1754448647202,-151.0,0.00028619,7]
[377580791,1754448647215,-1447.859031,0.00028619,7]
[377580793,1754448647225,-1447.859031,0.00028619,7]
[377580795,1754448647236,-307.592208,0.00028619,7]
[377580797,1754448647246,-307.592208,0.00028619,7]
[377580799,1754448647255,-307.592208,0.00028619,7]
[377580801,1754448647265,-307.592208,0.00028619,7]
[377580803,1754448647275,-151.0,0.00028619,7]
[377580805,1754448647285,-151.0,0.00028619,7]
[377580807,1754448647298,-645.940949,0.00028619,7]
[377580809,1754448647309,-645.940949,0.00028619,7]
[377580811,1754448647319,-645.940949,0.00028619,7]
[377580813,1754448647328,-645.940949,0.00028619,7]
[377580815,1754448647338,-645.940949,0.00028619,7]
[377580817,1754448647348,-645.940949,0.00028619,7]
[377580819,1754448647357,-151.0,0.00028619,7]
[377580821,1754448647367,-151.0,0.00028619,7]
[377580823,1754448647377,-157.784801,0.00028619,7]
[377580825,1754448647386,-157.784801,0.00028619,7]
[377580827,1754448647395,-157.784801,0.00028619,7]
[377580829,1754448647405,-413.582094,0.00028619,7]
[377580831,1754448647414,-151.0,0.00028619,7]
[377580833,1754448647423,-151.0,0.00028619,7]
[377580835,1754448647432,-202.15891,0.00028619,7]
[377580837,1754448647442,-408.620148,0.00028619,7]
[377580839,1754448647452,-408.620148,0.00028619,7]
[377580841,1754448647461,-408.620148,0.00028619,7]
[377580843,1754448647470,-408.620148,0.00028619,7]
[377580845,1754448647480,-165.265351,0.00028619,7]
[377580847,1754448647489,-165.265351,0.00028619,7]
[377580849,1754448647499,-551.324436,0.00028619,7]
[377580851,1754448647508,-551.324436,0.00028619,7]
[377580853,1754448647517,-165.265351,0.00028619,7]
[377580855,1754448647526,-165.265351,0.00028619,7]
[377580856,1754448647535,-551.324436,0.00028619,7]
[377580858,1754448647545,-551.324436,0.00028619,7]
[377580860,1754448647554,-427.871858,0.00028619,7]
[377580862,1754448647563,-427.871858,0.00028619,7]
[377580864,1754448647572,-427.871858,0.00028619,7]
[377580866,1754448647581,-427.871858,0.00028619,7]
[377580868,1754448647590,-151.0,0.00028622,7]
[377580870,1754448647600,-151.0,0.00028622,7]
[377580872,1754448647609,-1447.859031,0.00028622,7]
[377580874,1754448647618,-307.592208,0.00028622,7]
[377580876,1754448647627,-307.592208,0.00028622,7]
[377580878,1754448647637,-165.265351,0.00028622,7]
[377580880,1754448647646,-551.324436,0.00028622,7]
[377580882,1754448647655,-165.265351,0.00028622,7]
[377580884,1754448647665,-551.324436,0.00028622,7]
[377580886,1754448647674,-427.871858,0.00028622,7]
[377580888,1754448647683,-427.871858,0.00028622,7]
[377580890,1754448647694,-460.0,0.00028636,2]
[377580892,1754448647704,-150.0,0.00028673,3]
[377580894,1754448647713,-238.77104317,0.00028673,5]
[377580896,1754448647723,-500.0,0.00028673,5]
[377580898,1754448647733,-501.70565741,0.00028673,5]
[377580900,1754448647743,-500.0,0.00028673,5]
[377580902,1754448647758,-500.0,0.00028673,5]
[377580904,1754448647768,-501.13383579,0.00028673,5]
[377580906,1754448647778,-505.54184549,0.00028673,5]
[377580908,1754448647787,-502.2046253,0.00028673,5]
[377580910,1754448647797,-502.29930668,0.00028673,5]
[377580912,1754448647808,-500.0,0.00028673,5]
[377580914,1754448647817,-500.0,0.00028673,5]
[377580916,1754448647827,-500.0,0.00028673,5]
[377580918,1754448647836,-502.17984503,0.00028673,5]
[377580920,1754448647846,-393.96397647,0.00028673,5]
[377580922,1754448647859,-500.0,0.00028673,2]
[377580924,1754448647869,-504.84484149,0.00028673,5]
[377580926,1754448647879,-501.87617131,0.00028673,5]
[377580928,1754448647889,-500.0,0.00028673,5]
[377580930,1754448647899,-502.27358269,0.00028673,5]
[377580932,1754448647908,-500.0,0.00028673,5]
[377580934,1754448647917,-171.18,0.00028717,2]
[377580936,1754448647927,-151.0,0.00028718,7]
[377580938,1754448647936,-151.0,0.00028718,7]
[377580940,1754448647946,-266.592811,0.00028718,7]
[377580942,1754448647956,-160.0,0.0002872,10]
[377580944,1754448647965,-151.0,0.0002872,7]
[377580946,1754448647975,-185.455294,0.00028767,7]
[377580948,1754448647985,-151.0,0.00028767,7]
[377580950,1754448647994,-997.38463,0.00028767,7]
[377580952,1754448648003,-997.38463,0.00028767,7]
[377580954,1754448648013,-238.035865,0.00028767,2]
[377580956,1754448648023,-500.0,0.00028767,2]
[377580958,1754448648032,-189.43151,0.00028773,7]
[377580960,1754448648042,-189.43151,0.00028773,7]
[377580962,1754448648052,-151.0,0.00028773,7]
[377580964,1754448648063,-151.0,0.00028773,7]
[377580966,1754448648073,-151.0,0.00028773,7]
[377580968,1754448648083,-151.0,0.00028773,7]
[377580970,1754448648098,-154.247363,0.00028773,7]
[377580972,1754448648109,-155.013475,0.00028773,7]
[377580974,1754448648120,-645.940949,0.00028773,7]
[377580976,1754448648130,-645.940949,0.00028773,7]
[377580978,1754448648140,-151.0,0.00028773,7]
[377580980,1754448648150,-157.784801,0.00028773,7]
[377580982,1754448648159,-157.784801,0.00028773,7]
[377580984,1754448648169,-408.620148,0.00028773,7]
[377580986,1754448648178,-408.620148,0.00028773,7]
[377580988,1754448648187,-153.0,0.00028777,2]
[377580990,1754448648196,-153.0,0.00028777,2]
[377580992,1754448648206,-153.0,0.00028777,2]
[377580994,1754448648215,-153.0,0.00028777,2]
[377580996,1754448648224,-153.0,0.00028777,2]
[377580998,1754448648233,-153.0,0.00028777,2]
[377581000,1754448648243,-153.0,0.00028777,2]
[377581002,1754448648252,-153.0,0.00028777,2]
[377581003,1754448648262,-153.0,0.00028777,2]
[377581005,1754448648271,-153.0,0.00028777,2]
[377581006,1754448648280,-153.0,0.00028777,2]
[377581007,1754448648289,-153.0,0.00028777,2]
[377581008,1754448648298,-153.0,0.00028777,2]
[377581009,1754448648308,-153.0,0.00028777,2]
[377581010,1754448648317,-153.0,0.00028777,2]
[377581011,1754448648326,-153.0,0.00028777,2]
[377581012,1754448648336,-153.0,0.00028777,2]
[377581013,1754448648345,-153.0,0.00028777,2]
[377581014,1754448648354,-153.0,0.00028777,2]
[377581015,1754448648363,-153.0,0.00028777,2]
[377581016,1754448648372,-153.0,0.00028777,2]
[377581017,1754448648381,-153.0,0.00028777,2]
[377581018,1754448648390,-153.0,0.00028777,2]
[377581019,1754448648399,-153.0,0.00028777,2]
[377581020,1754448648408,-153.0,0.00028777,2]
[377581021,1754448648418,-153.0,0.00028777,2]
[377581022,1754448648427,-153.0,0.00028777,2]
[377581023,1754448648436,-153.0,0.00028777,2]
[377581024,1754448648446,-153.0,0.00028777,2]
[377581025,1754448648455,-153.0,0.00028777,2]
[377581026,1754448648464,-153.0,0.00028777,2]
[377581027,1754448648473,-153.0,0.00028777,2]
[377581028,1754448648483,-153.0,0.00028777,2]
[377581029,1754448648492,-153.0,0.00028777,2]
[377581030,1754448648501,-153.0,0.00028777,2]
[377581031,1754448648510,-153.0,0.00028777,2]
[377581032,1754448648519,-153.0,0.00028777,2]
[377581033,1754448648528,-153.0,0.00028777,2]
[377581034,1754448648537,-153.0,0.00028777,2]
[377581035,1754448648546,-153.0,0.00028777,2]
[377581036,1754448648555,-153.0,0.00028777,2]
[377581037,1754448648564,-153.0,0.00028777,2]
[377581038,1754448648573,-153.0,0.00028777,2]
[377581039,1754448648583,-153.0,0.00028777,2]
[377581040,1754448648592,-153.0,0.00028777,2]
[377581041,1754448648602,-153.0,0.00028777,2]
[377581042,1754448648611,-153.0,0.00028777,2]
[377581043,1754448648621,-153.0,0.00028777,2]
[377581044,1754448648630,-153.0,0.00028777,2]
[377581046,1754448648640,-153.0,0.00028777,2]
[377581048,1754448648649,-153.0,0.00028777,2]
[377581050,1754448648659,-153.0,0.00028777,2]
[377581052,1754448648668,-153.0,0.00028777,2]
[377581054,1754448648677,-153.0,0.00028777,2]
[377581056,1754448648686,-153.0,0.00028777,2]
[377581058,1754448648696,-153.0,0.00028777,2]
[377581060,1754448648706,-204.2,0.00028781,15]
[377581062,1754448648715,-151.0,0.00028793,7]
[377581064,1754448648725,-151.0,0.00028793,7]
[377581066,1754448648735,-151.0,0.00028793,7]
[377581068,1754448648745,-1026.2,0.000288,29]
[377581070,1754448648754,-1000.0,0.000288,29]
[377581072,1754448648764,-214.194849,0.000288,7]
[377581074,1754448648773,-214.194849,0.000288,7]
[377581076,1754448648783,-151.0,0.000288,7]
[377581078,1754448648792,-151.0,0.000288,7]
[377581080,1754448648801,-151.0,0.000288,7]
[377581082,1754448648810,-323.829092,0.000288,7]
[377581084,1754448648820,-323.829092,0.000288,7]
[377581086,1754448648830,-579.103821,0.000288,7]
[377581088,1754448648840,-579.103821,0.000288,7]
[377581090,1754448648853,-413.582094,0.000288,7]
[377581092,1754448648862,-162.5,0.0002884,15]
[377581094,1754448648872,-204.2,0.00028881,15]
[377581096,1754448648882,-825.1159762,0.00028883,2]
[377581098,1754448648892,-151.0,0.00028889,7]
[377581100,1754448648902,-214.194849,0.00028889,7]
[377581102,1754448648911,-214.194849,0.00028889,7]
[377581104,1754448648921,-151.0,0.00028893,7]
[377581106,1754448648932,-151.0,0.00028893,7]
[377581108,1754448648943,-151.0,0.00028893,7]
[377581110,1754448648952,-189.43151,0.00028893,7]
[377581112,1754448648961,-189.43151,0.00028893,7]
[377581114,1754448648971,-189.43151,0.00028893,7]
[377581116,1754448648980,-189.43151,0.00028893,7]
[377581118,1754448648990,-189.43151,0.00028893,7]
[377581120,1754448648999,-189.431508,0.00028893,7]
[377581122,1754448649009,-214.194849,0.00028893,7]
[377581124,1754448649019,-214.194858,0.00028893,7]
[377581126,1754448649029,-185.455294,0.00028893,7]
[377581128,1754448649039,-185.4553,0.00028893,7]
[377581130,1754448649049,-151.0,0.00028893,7]
[377581132,1754448649059,-151.0,0.00028893,7]
[377581134,1754448649068,-169.067423,0.00028893,7]
[377581136,1754448649078,-151.0,0.00028893,7]
[377581138,1754448649089,-151.0,0.00028893,7]
[377581139,1754448649099,-151.0,0.00028893,7]
[377581141,1754448649109,-997.38463,0.00028893,7]
[377581143,1754448649118,-997.38463,0.00028893,7]
[377581145,1754448649129,-997.38463,0.00028893,7]
[377581147,1754448649139,-997.384636,0.00028893,7]
[377581149,1754448649149,-151.0,0.00028893,7]
[377581151,1754448649158,-151.0,0.00028893,7]
[377581153,1754448649168,-323.829092,0.00028893,7]
[377581155,1754448649178,-323.829092,0.00028893,7]
[377581157,1754448649187,-579.103821,0.00028893,7]
[377581159,1754448649196,-579.103821,0.00028893,7]
[377581161,1754448649206,-151.0,0.00028893,7]
[377581163,1754448649216,-151.0,0.00028893,7]
[377581165,1754448649225,-151.0,0.00028893,7]
[377581167,1754448649235,-1447.859031,0.00028893,7]
[377581169,1754448649244,-307.592208,0.00028893,7]
[377581171,1754448649254,-307.592208,0.00028893,7]
[377581173,1754448649264,-645.940949,0.00028893,7]
[377581175,1754448649274,-645.940949,0.00028893,7]
[377581177,1754448649284,-157.784801,0.00028893,7]
[377581179,1754448649293,-157.784801,0.00028893,7]
[377581181,1754448649302,-165.265351,0.00028893,7]
[377581183,1754448649311,-551.324436,0.00028893,7]
[377581185,1754448649321,-165.265351,0.00028893,7]
[377581187,1754448649330,-551.324436,0.00028893,7]
[377581189,1754448649339,-427.871858,0.00028893,7]
[377581191,1754448649348,-427.871858,0.00028893,7]
[377581193,1754448649358,-151.0,0.00028922,7]
[377581195,1754448649367,-151.0,0.00028922,7]
[377581197,1754448649376,-151.0,0.00028922,7]
[377581199,1754448649386,-151.0,0.00028922,7]
[377581201,1754448649395,-160.0,0.00028922,11]
[377581203,1754448649404,-162.5,0.0002894,15]
[377581205,1754448649413,-2500.0,0.00028964,5]
[377581207,1754448649422,-500.0,0.0002898,2]
[377581209,1754448649432,-151.0,0.0002898,7]
[377581211,1754448649441,-408.620148,0.0002898,7]
[377581213,1754448649451,-408.620148,0.0002898,7]
[377581215,1754448649460,-204.2,0.00028981,15]
[377581217,1754448649469,-8042.61416437,0.00028991,2]
[377581219,1754448649478,-931.17015593,0.00028991,2]
[377581221,1754448649488,-874.56269016,0.00029,2]
[377581223,1754448649498,-151.0,0.00029,7]
[377581225,1754448649507,-121875.70365898,0.00029,2]
[377581253,1754448649763,-670479.81911217,0.00029,2]
[377581307,1754448650264,5000.0,0.0002511,9]
[377581993,1754448657406,5000.0,0.0002511,9]
[377583415,1754448673473,5000.0,0.0002511,9]
[377584955,1754448689352,1454.42269406,0.0002511,9]
[377594274,1754448789395,150.0,0.0003,120]
[377603927,1754449011830,179.99999999,0.0003,120]
[377603949,1754449832290,-150.0,0.00025241,2]
[377603951,1754449832301,-171.3412682,0.00025659,2]
[377603953,1754449832315,-569.74107112,0.00025847,2]
[377603955,1754449832324,-558.70209359,0.00026456,2]
[377603957,1754449832334,-151.0,0.00026458,2]
[377603959,1754449832343,-871.39766422,0.00026464,2]
[377603965,1754449832391,-118.74150722,0.00026464,2]
[377603969,1754449832402,-595.70336406,0.00026464,2]
[377604127,1754449838282,-762.35079288,0.00026464,2]
[377604128,1754449838291,-598.76658418,0.00026469,2]
[377604129,1754449838301,-351.56686302,0.00026469,2]
[377604130,1754449838313,-462312.07697242,0.0002647,2]
[377604131,1754449838322,-158.87,0.00026473,2]
[377604132,1754449838332,-178.15608472,0.00026473,13]
[377604133,1754449838341,-300.0,0.00026473,2]